bitfinex-derivatives/quotes_SOLF0:USTF0_20250821
["timestamp","ask_amount","ask_price","bid_price","bid_amount"]
[1755766867341,70.11180375,185.64,185.51,2.99]
[1755766867548,5.3889,185.57,185.52,5.3901]
[1755766867746,5.3889,185.57,185.53,2.99]
[1755766867951,5.3889,185.57,185.54,2.99]
[1755766868142,5.3891,185.56,185.54,2.99]
[1755766868338,2.3241397,185.57,185.5,0.58680808]
[1755766868852,2.3241397,185.57,185.51,2.99]
[1755766869249,2.3241397,185.57,185.51,8.3804]
[1755766869753,2.3241397,185.57,185.51,2.99]
[1755766870051,2.3241397,185.57,185.52,2.99]
[1755766870052,5.3898,185.54,185.52,2.99]
[1755766870744,2.3241397,185.57,185.53,2.99]
[1755766871145,2.3241397,185.59,185.54,2.99]
[1755766871340,2.3241397,185.59,185.55,2.99]
[1755766871741,2.3241397,185.6,185.57,2.99]
[1755766872356,5.3886,185.58,185.57,2.99]
[1755766872545,2.3241397,185.6,185.53,8.3799]
[1755766873551,5.3889,185.57,185.53,8.3799]
[1755766873855,2.3241397,185.6,185.5,0.58680808]
[1755766873856,2.3241397,185.58,185.51,2.99]
[1755766875955,2.3241397,185.58,185.51,8.3805]
[1755766876352,2.3241397,185.58,185.51,2.99]
[1755766876557,2.3241397,185.58,185.52,5.3902]
[1755766876855,2.3241397,185.58,185.53,2.99]
[1755766877752,5.3897,185.54,185.53,2.99]
[1755766878155,5.3897,185.54,185.51,2.99]
[1755766878456,5.3897,185.54,185.52,2.99]
[1755766879754,5.3899,185.53,185.52,2.99]
[1755766881154,5.3899,185.53,185.5,5.97750808]
[1755766881155,5.3905,185.51,185.5,0.58680808]
[1755766881451,2.3241397,185.56,185.51,2.99]
[1755766881654,5.3902,185.52,185.51,2.99]
[1755766881850,2.3241397,185.56,185.51,2.99]
[1755766882052,2.3241397,185.56,185.5,0.58680808]
[1755766882257,5.39,185.53,185.5,0.58680808]
[1755766882461,5.39,185.53,185.51,2.99]
[1755766882662,2.3241397,185.56,185.51,2.99]
[1755766882860,5.3901,185.53,185.51,2.99]
[1755766883460,5.3898,185.54,185.52,2.99]
[1755766883862,2.3241397,185.56,185.52,2.99]
[1755766884057,2.3241397,185.56,185.5,0.58680808]
[1755766885163,5.3903,185.52,185.5,3.57680808]
[1755766885557,2.3241397,185.56,185.5,0.58680808]
[1755766885957,2.3541397,185.56,185.5,0.58680808]
[1755766886363,5.3904,185.52,185.5,3.51680808]
[1755766887360,2.3541397,185.56,185.5,3.51680808]
[1755766888563,5.3904,185.52,185.5,3.51680808]
[1755766890367,5.3902,185.53,185.5,3.51680808]
[1755766890566,2.3241397,185.55,185.5,3.51680808]
[1755766890773,0.03,185.54,185.51,2.93]
[1755766890969,5.3902,185.53,185.51,2.93]
[1755766891274,0.03,185.54,185.5,0.58680808]
[1755766891462,0.03,185.53,185.5,3.51680808]
[1755766892576,0.03,185.52,185.5,0.58680808]
[1755766893673,5.3905,185.51,185.5,0.58680808]
[1755766894777,5.4205,185.51,185.5,0.58680808]
[1755766894975,5.3905,185.51,185.5,0.58680808]
[1755766897172,5.4205,185.51,185.5,0.58680808]
[1755766897372,7.7446397,185.51,185.5,0.58680808]
[1755766899280,5.3924,185.45,185.39,2.3241397]
[1755766899675,2.3241397,185.46,185.39,2.93]
[1755766900275,0.03,185.46,185.36,2.93]
[1755766900474,2.3241397,185.45,185.36,2.93]
[1755766900670,2.3241397,185.45,185.32,4.5200224]
[1755766900875,2.3241397,185.4,185.32,2.93]
[1755766902177,0.03,185.41,185.32,2.93]
[1755766902574,0.03,185.41,185.36,2.93]
[1755766902776,2.3541397,185.42,185.26,5.45902754]
[1755766903074,2.3541397,185.42,185.31,2.93]
[1755766903275,2.3241397,185.4,185.31,2.93]
[1755766903576,0.03,185.33,185.17,9.7741621]
[1755766903780,2.3541397,185.31,185.2,2.93]
[1755766904077,2.3541397,185.31,185.21,2.93]
[1755766904381,5.3967,185.3,185.23,5.3985]
[1755766904574,2.3541397,185.31,185.21,2.93]
[1755766905175,5.3972,185.28,185.22,5.3989]
[1755766905378,5.3972,185.28,185.21,2.93]
[1755766905379,0.03,185.28,185.21,2.93]
[1755766906676,0.03,185.28,185.21,8.329]
[1755766906875,0.03,185.28,185.21,2.93]
[1755766908875,2.3241397,185.27,185.21,2.93]
[1755766909079,0.03,185.28,185.21,2.93]
[1755766910182,0.03,185.28,185.21,8.3292]
[1755766910481,0.03,185.28,185.21,5.2541397]
[1755766911479,0.03,185.28,185.22,5.3989]
[1755766911884,0.03,185.28,185.21,2.93]
[1755766912083,0.03,185.28,185.21,8.329]
[1755766912284,2.3541397,185.31,185.21,8.329]
[1755766912475,2.3541397,185.31,185.21,2.93]
[1755766912678,5.3977,185.27,185.21,8.3292]
[1755766913174,2.3541397,185.31,185.21,8.3292]
[1755766913175,0.03,185.3,185.21,8.3292]
[1755766913581,2.3541397,185.3,185.21,8.3292]
[1755766914275,5.3977,185.27,185.21,8.3292]
[1755766914885,5.3978,185.27,185.21,8.3292]
[1755766915081,0.03,185.29,185.21,2.93]
[1755766915281,2.3241397,185.28,185.21,2.93]
[1755766915982,4.6482794,185.22,185.05,2.3241397]
[1755766916183,4.6482794,185.22,184.95,2.3241397]
[1755766916184,2.3241397,185.22,185.1,2.3241397]
[1755766916385,5.4,185.19,185.11,2.96]
[1755766916583,2.3241397,185.19,185.05,2.96]
[1755766916789,2.3241397,185.19,185.09,2.96]
[1755766917085,2.3241397,185.21,185.11,2.3241397]
[1755766917284,2.3241397,185.21,185.13,5.4014]
[1755766917680,5.4,185.19,185.13,5.4014]
[1755766918177,5.3996,185.2,185.12,2.96]
[1755766918378,2.3241397,185.24,185.12,2.96]
[1755766918783,2.3241397,185.24,185.14,5.4012]
[1755766919184,2.3241397,185.22,185.09,0.93986739]
[1755766919485,5.4009,185.16,185.13,2.96]
[1755766919688,5.4009,185.16,185.14,2.96]
[1755766919989,5.4009,185.16,185.1,2.3241397]
[1755766919990,5.401,185.15,185.1,2.96]
[1755766920182,5.401,185.15,185.03,135.62]
[1755766920183,5.401,185.15,185.12,2.96]
[1755766920386,2.3241397,185.2,185.13,2.96]
[1755766921086,5.4013,185.14,185.13,2.96]
[1755766921288,2.3241397,185.16,185.09,2.96]
[1755766921880,2.3241397,185.18,185.09,2.96]
[1755766922084,5.4018,185.13,185.09,2.96]
[1755766922280,5.4018,185.13,185.1,2.96]
[1755766922581,2.3241397,185.22,185.11,2.3241397]
[1755766922783,5.4008,185.16,185.11,2.3241397]
[1755766922978,5.4008,185.16,185.14,2.96]
[1755766923182,2.3241397,185.2,185.09,2.96]
[1755766923383,2.3241397,185.19,185.09,2.96]
[1755766923790,5.401,185.15,185.08,2.3241397]
[1755766923986,2.3241397,185.19,185.09,2.96]
[1755766924290,2.3241397,185.17,185.06,2.3241397]
[1755766924484,2.3241397,185.22,185.07,2.96]
[1755766924790,2.3241397,185.18,185.08,5.403]
[1755766924985,2.3241397,185.18,185.07,5.2841397]
[1755766925181,2.3241397,185.16,185.07,2.96]
[1755766926397,2.3241397,185.22,185.07,8.3633]
[1755766926689,10.7969,185.24,185.07,8.3633]
[1755766926889,5.4016,185.13,185.07,8.3633]
[1755766927286,5.4016,185.13,185.08,8.3629]
[1755766927791,5.4019,185.12,185.08,2.96]
[1755766927988,5.4019,185.12,185.0,1.0]
[1755766927989,2.3241397,185.12,185.0,1.0]
[1755766928294,2.3241397,185.08,185.0,1.0]
[1755766928889,5.4046,185.03,185.0,3.96]
[1755766929094,2.3241397,185.08,185.0,3.96]
[1755766929290,362.96,185.17,184.96,2.3241397]
[1755766929494,2.3241397,185.1,184.97,2.96]
[1755766929690,2.3241397,185.07,184.97,5.2841397]
[1755766929894,362.96,185.17,184.97,5.2841397]
[1755766929895,2.3241397,185.1,184.99,5.4057]
[1755766930094,2.3241397,185.1,184.97,5.2841397]
[1755766930296,2.3241397,185.1,184.98,5.4059]
[1755766930496,2.3241397,185.07,184.98,5.4059]
[1755766931393,2.3241397,185.07,184.99,5.4055]
[1755766931594,2.3241397,185.05,184.97,2.96]
[1755766931900,2.3241397,185.0,184.94,5.407]
[1755766932496,2.3241397,185.02,184.93,2.96]
[1755766933703,2.3241397,185.02,184.93,8.3674]
[1755766934000,2.3241397,185.0,184.93,8.3674]
[1755766934203,2.3241397,185.0,184.93,2.96]
[1755766934800,2.3241397,184.98,184.89,2.96]
[1755766935199,2.3241397,184.98,184.82,500.06]
[1755766935200,2.3241397,185.0,184.91,2.96]
[1755766935395,2.3241397,185.0,184.92,5.4076]
[1755766935796,2.3241397,185.02,184.94,5.4069]
[1755766936100,2.3241397,185.04,184.94,2.96]
[1755766936500,2.3241397,185.03,184.94,2.96]
[1755766936691,2.3241397,185.05,184.95,2.96]
[1755766936890,72.23474042,185.1,185.0,5.4052]
[1755766937099,72.23474042,185.1,185.01,2.96]
[1755766937298,74.55888012,185.1,185.01,2.96]
[1755766938298,72.23474042,185.1,185.01,2.96]
[1755766938498,2.3241397,185.14,185.06,5.4036]
[1755766938801,2.3241397,185.12,185.03,2.96]
[1755766939397,2.3241397,185.13,185.03,2.96]
[1755766939703,2.3241397,185.13,185.07,2.96]
[1755766939899,136.64,185.21,185.07,2.96]
[1755766940095,2.3241397,185.15,185.07,2.96]
[1755766940298,3.8153953,185.17,185.07,2.96]
[1755766940497,3.8153953,185.17,185.08,5.403]
[1755766941299,3.8153953,185.17,185.07,2.96]
[1755766941502,3.8153953,185.21,185.07,2.96]
[1755766941804,3.8153953,185.21,185.11,2.96]
[1755766942101,71.37164536,185.36,185.14,3.8153953]
[1755766942303,3.8153953,185.24,185.15,2.96]
[1755766943000,3.8153953,185.24,185.15,8.3609]
[1755766943401,3.8153953,185.24,185.16,5.4007]
[1755766943602,3.8153953,185.27,185.15,2.96]
[1755766944103,3.8153953,185.27,185.15,8.3607]
[1755766944298,3.8153953,185.27,185.15,2.96]
[1755766945296,3.8153953,185.27,185.18,5.4001]
[1755766946501,3.8153953,185.3,185.16,2.87]
[1755766946702,3.8153953,185.3,185.16,6.6853953]
[1755766947096,5.3981,185.26,185.19,5.3996]
[1755766947501,5.3981,185.26,185.19,8.2696]
[1755766947701,5.3976,185.27,185.2,5.3995]
[1755766947894,3.8153953,185.3,185.2,5.3995]
[1755766948507,3.8153953,185.3,185.21,5.3992]
[1755766948895,5.3961,185.32,185.19,3.8153953]
[1755766949104,3.8153953,185.33,185.2,2.87]
[1755766949702,3.8153953,185.33,185.23,5.3987]
[1755766949904,3.8153953,185.33,185.23,8.2687]
[1755766950199,3.8153953,185.33,185.23,2.87]
[1755766950908,75.18704066,185.36,185.23,2.87]
[1755766951106,3.8153953,185.36,185.23,2.87]
[1755766951301,10.7857,185.44,185.22,3.8153953]
[1755766951302,3.8153953,185.39,185.28,5.3972]
[1755766951502,3.8153953,185.39,185.27,2.87]
[1755766951903,3.8153953,185.39,185.28,5.397]
[1755766952105,3.8153953,185.38,185.27,2.87]
[1755766952409,3.8153953,185.41,185.27,2.87]
[1755766953202,3.8153953,185.41,185.33,5.3957]
[1755766953404,137.28,185.46,185.29,2.87]
[1755766953405,3.8153953,185.44,185.29,2.87]
[1755766953609,141.0953953,185.46,185.32,2.87]
[1755766953804,3.8153953,185.46,185.37,5.3944]
[1755766954002,3.8153953,185.46,185.36,2.87]
[1755766954202,137.3,185.55,185.36,2.87]
[1755766954203,3.8153953,185.49,185.36,2.87]
[1755766955199,3.8153953,185.49,185.32,3.8153953]
[1755766955200,0.9387645,185.52,185.39,5.394]
[1755766955405,3.8153953,185.51,185.4,2.87]
[1755766956905,0.93852398,185.56,185.42,2.87]
[1755766957208,3.8153953,185.54,185.42,2.87]
[1755766957713,0.93852398,185.56,185.42,2.87]
[1755766957714,3.8153953,185.51,185.42,2.87]
[1755766958411,3.8153953,185.52,185.42,2.87]
[1755766958610,3.8153953,185.49,185.38,2.87]
[1755766959409,3.8153953,185.52,185.38,2.87]
[1755766959810,3.8153953,185.49,185.38,2.87]
[1755766960614,3.8153953,185.46,185.38,2.87]
[1755766961215,3.8153953,185.49,185.38,8.2642]
[1755766961507,3.8153953,185.49,185.38,2.87]
[1755766962213,3.8153953,185.49,185.38,8.2641]
[1755766963004,3.8153953,185.49,185.38,2.87]
[1755766963603,3.8153953,185.46,185.33,2.87]
[1755766964807,3.8153953,185.43,185.33,2.87]
[1755766965505,3.8153953,185.38,185.18,2.87]
[1755766965710,3.8153953,185.35,185.21,2.87]
[1755766966107,3.8153953,185.35,185.2,3.8153953]
[1755766966108,3.8153953,185.35,185.25,2.87]
[1755766966604,3.8153953,185.35,185.25,8.2679]
[1755766967209,3.8153953,185.35,185.25,2.87]
[1755766967814,362.62,185.45,185.2,2.87]
[1755766967815,3.8153953,185.31,185.2,2.87]
[1755766968020,362.62,185.45,185.2,2.87]
[1755766968021,3.8153953,185.28,185.2,2.87]
[1755766970016,3.8153953,185.28,185.2,8.2695]
[1755766970518,3.8153953,185.31,185.2,8.2695]
[1755766971019,3.8153953,185.31,185.2,2.87]
[1755766971521,3.8153953,185.31,185.23,5.3985]
[1755766972017,3.8153953,185.31,185.22,5.3989]
[1755766972519,3.8153953,185.31,185.2,2.87]
[1755766972917,3.8153953,185.31,185.23,5.3986]
[1755766974119,3.8153953,185.31,185.22,5.3989]
[1755766974619,3.8153953,185.31,185.23,5.3987]
[1755766975921,3.8153953,185.31,185.22,5.3989]
[1755766976421,3.8153953,185.28,185.2,2.87]
[1755766977117,3.8153953,185.28,185.21,5.399]
[1755766978016,3.8153953,185.28,185.11,362.74]
[1755766978319,3.8153953,185.28,185.19,2.85]
[1755766978522,3.8153953,185.25,185.19,2.85]
[1755766979718,3.8153953,185.25,185.19,8.2496]
[1755766979924,3.8153953,185.25,185.19,2.85]
[1755766984029,3.8153953,185.25,185.16,2.85]
[1755766985231,3.8153953,185.25,185.18,5.3999]
[1755766985729,3.8153953,185.25,185.16,2.85]
[1755766985730,3.8153953,185.25,185.19,5.3998]
[1755766985930,3.8153953,185.25,185.19,8.2498]
[1755766986431,3.8153953,185.31,185.15,2.85]
[1755766986830,3.8153953,185.31,185.23,5.3987]
[1755766987427,3.8153953,185.31,185.24,5.3983]
[1755766988435,3.8153953,185.31,185.18,2.85]
[1755766988933,3.8153953,185.33,185.23,2.85]
[1755766989332,3.8153953,185.3,185.23,2.85]
[1755766989933,3.8153953,185.3,185.2,8.2493]
[1755766990334,3.8153953,185.3,185.22,5.3989]
[1755766990737,3.8153953,185.33,185.22,2.85]
[1755766990930,3.8153953,185.33,185.23,5.3987]
[1755766991439,3.8153953,185.33,185.22,2.85]
[1755766991938,3.8153953,185.3,185.2,5.3995]
[1755766992533,3.8153953,185.3,185.18,2.85]
[1755766992737,3.8153953,185.33,185.18,2.85]
[1755766992938,3.8153953,185.33,185.2,5.3993]
[1755766993138,3.8153953,185.33,185.15,2.85]
[1755766993440,3.8153953,185.33,185.23,8.2485]
[1755766993837,3.8153953,185.33,185.23,2.85]
[1755766994442,3.8153953,185.35,185.23,2.85]
[1755766994643,3.8153953,185.35,185.26,5.3978]
[1755766994845,3.8153953,185.35,185.23,2.85]
[1755766995345,3.8153953,185.35,185.27,5.3973]
[1755766995645,3.8153953,185.35,185.28,5.3971]
[1755766996035,3.8153953,185.38,185.26,2.85]
[1755766996244,3.8153953,185.38,185.29,5.3969]
[1755766996446,3.8153953,185.38,185.27,2.85]
[1755766996946,3.8153953,185.38,185.31,5.3963]
[1755766997352,79.79998937,185.39,185.27,3.8153953]
[1755766997643,79.79998937,185.39,185.28,2.85]
[1755766998149,79.79998937,185.39,185.37,2.85]
[1755766998347,362.62,185.45,185.3,3.8153953]
[1755766998348,362.62,185.45,185.36,2.85]
[1755766998648,362.62,185.45,185.36,8.2447]
[1755766998849,362.62,185.45,185.36,2.85]
[1755766999951,3.8153953,185.43,185.32,2.85]
[1755767000153,3.8153953,185.4,185.32,2.85]
[1755767001344,3.8153953,185.37,185.28,2.85]
[1755767002346,3.8153953,185.31,185.15,2.85]
[1755767002546,3.8153953,185.25,185.15,2.85]
[1755767007652,3.8153953,185.28,185.15,2.85]
[1755767008254,3.8153953,185.28,185.15,8.2509]
[1755767008554,3.8153953,185.28,185.15,2.85]
[1755767008853,3.8153953,185.28,185.16,5.4006]
[1755767009448,3.8153953,185.28,185.15,8.2509]
[1755767009651,3.8153953,185.19,185.06,66.48627213]
[1755767009852,3.8153953,185.19,185.07,2.78]
[1755767010052,3.8153953,185.19,185.1,2.78]
[1755767011752,3.8153953,185.19,185.1,8.1824]
[1755767011954,3.8153953,185.19,185.1,2.78]
[1755767012351,3.8153953,185.19,185.1,8.1823]
[1755767012952,3.8153953,185.2,185.1,8.1823]
[1755767013452,3.8153953,185.2,185.1,2.78]
[1755767014558,3.8153953,185.2,185.01,4.48627213]
[1755767014754,3.8153953,185.17,185.06,8.1835]
[1755767014954,3.8153953,185.17,185.06,2.78]
[1755767016758,3.8153953,185.17,185.06,8.1836]
[1755767017358,3.8153953,185.17,185.06,2.78]
[1755767017661,3.8153953,185.24,185.06,2.78]
[1755767017662,3.8153953,185.14,185.06,2.78]
[1755767021159,3.8153953,185.14,185.01,2.78]
[1755767021459,3.8153953,185.11,185.01,2.78]
[1755767021666,3.8153953,185.08,184.92,2.78]
[1755767021869,3.8153953,185.08,184.94,2.78]
[1755767022358,3.8153953,185.08,184.99,2.78]
[1755767022864,3.8153953,185.08,184.95,2.78]
[1755767023364,3.8153953,185.05,184.95,2.78]
[1755767023560,3.8153953,185.13,184.95,2.78]
[1755767023561,3.8153953,185.06,184.95,2.78]
[1755767026864,3.8153953,185.06,184.95,8.1868]
[1755767027065,3.8153953,185.06,184.95,2.78]
[1755767027262,3.8153953,185.13,184.95,2.78]
[1755767027263,3.8153953,185.03,184.95,2.78]
[1755767027568,3.8153953,185.03,184.92,5.4075]
[1755767027569,3.8153953,185.13,184.92,2.78]
[1755767027762,3.8153953,185.02,184.92,2.78]
[1755767028864,4.3553953,185.02,184.79,2.78]
[1755767029060,3.8153953,184.93,184.79,2.78]
[1755767029259,138.34,185.01,184.77,2.78]
[1755767029460,3.8153953,184.91,184.77,2.78]
[1755767029763,138.5,185.01,184.8,5.4109]
[1755767029963,3.8153953,184.91,184.81,2.78]
[1755767030163,138.5,185.01,184.81,2.78]
[1755767030365,363.2,185.04,184.81,2.78]
[1755767030366,3.8153953,184.9,184.81,2.78]
[1755767030666,3.8153953,184.94,184.81,2.78]
[1755767031167,3.8153953,184.91,184.76,0.94139288]
[1755767031361,3.8153953,184.9,184.77,2.78]
[1755767031967,3.8153953,185.02,184.77,2.78]
[1755767032267,363.2,185.04,184.78,2.78]
[1755767032464,3.8153953,184.93,184.82,2.78]
[1755767032666,3.8153953,184.96,184.82,2.78]
[1755767032867,3.8153953,184.93,184.82,2.78]
[1755767033063,363.2,185.04,184.82,3.8153953]
[1755767033269,3.8153953,184.96,184.83,2.78]
[1755767033462,363.2,185.04,184.83,2.78]
[1755767033766,363.2,185.04,184.84,2.78]
[1755767033767,3.8153953,184.93,184.84,2.78]
[1755767034169,3.8153953,185.02,184.84,2.78]
[1755767034367,3.8153953,184.94,184.84,2.78]
[1755767034572,3.8153953,184.92,184.84,2.78]
[1755767034773,5.4088,184.89,184.84,2.78]
[1755767035074,5.4088,184.89,184.74,363.32]
[1755767035075,3.8153953,184.96,184.85,2.78]
[1755767035875,3.8153953,184.97,184.85,2.78]
[1755767036169,5.408,184.91,184.85,8.1897]
[1755767036373,3.8153953,184.91,184.77,2.76]
[1755767037274,3.8153953,184.92,184.77,2.76]
[1755767037767,5.4089,184.88,184.81,8.1706]
[1755767037968,3.8153953,184.89,184.81,2.76]
[1755767038276,0.94148202,185.0,184.81,2.76]
[1755767038465,3.8153953,184.86,184.75,2.76]
[1755767038666,3.8153953,184.86,184.75,8.1725]
[1755767038878,3.8153953,184.86,184.75,2.76]
[1755767039370,5.4103,184.83,184.77,5.4118]
[1755767039562,0.94148202,185.0,184.8,2.76]
[1755767039766,3.8153953,184.94,184.8,2.76]
[1755767039965,5.4097,184.85,184.8,2.76]
[1755767040173,5.4097,184.85,184.81,2.76]
[1755767040475,5.4082,184.91,184.81,2.76]
[1755767040669,3.8153953,184.94,184.81,2.76]
[1755767040975,3.8153953,184.96,184.87,5.4089]
[1755767041164,3.8153953,184.96,184.87,2.76]
[1755767042065,0.94148202,185.0,184.71,62.0]
[1755767042066,3.8153953,184.93,184.81,2.76]
[1755767042465,0.94148202,185.0,184.82,5.4106]
[1755767042671,3.8153953,184.94,184.81,2.76]
[1755767042974,3.8153953,184.97,184.86,5.4094]
[1755767043275,3.8153953,184.97,184.84,2.76]
[1755767043776,3.8153953,184.97,184.84,8.1698]
[1755767043976,3.8153953,184.97,184.84,2.76]
[1755767044180,3.8153953,184.97,184.85,5.4094]
[1755767044775,3.8153953,184.97,184.84,2.76]
[1755767045276,3.8153953,184.97,184.86,5.4094]
[1755767045677,3.8153953,184.97,184.72,678.6]
[1755767045678,363.2,185.04,184.85,2.76]
[1755767045883,367.0153953,185.04,184.9,2.76]
[1755767046081,363.2,185.04,184.91,2.76]
[1755767046383,363.2,185.04,184.8,3.8153953]
[1755767046384,363.2,185.04,184.87,2.76]
[1755767046576,3.8153953,185.01,184.87,2.76]
[1755767046781,3.8153953,185.01,184.9,5.4081]
[1755767046984,3.8153953,185.01,184.9,8.1681]
[1755767047185,3.8153953,184.98,184.9,2.76]
[1755767049785,3.8153953,184.98,184.91,2.76]
[1755767049987,3.8153953,184.98,184.78,62.0]
[1755767049988,3.8153953,184.95,184.83,2.76]
[1755767050187,3.8153953,184.95,184.83,8.1703]
[1755767050394,3.8153953,184.95,184.83,2.76]
[1755767051291,3.8153953,184.95,184.84,5.4098]
[1755767051589,145.0,184.98,184.83,2.76]
[1755767051887,3.8153953,185.0,184.87,2.76]
[1755767052186,3.8153953,185.03,184.9,3.8153953]
[1755767052390,3.8153953,185.03,184.91,2.76]
[1755767052788,5.4066,184.96,184.9,5.408]
[1755767052984,3.8153953,185.0,184.9,2.76]
[1755767053486,363.2,185.04,184.9,2.76]
[1755767053688,3.8153953,185.01,184.9,2.76]
[1755767053988,363.2,185.04,184.91,2.76]
[1755767054489,5.4057,184.99,184.92,5.4075]
[1755767054887,367.0153953,185.04,184.91,2.76]
[1755767055280,3.8153953,185.01,184.91,2.76]
[1755767055682,3.8153953,184.98,184.91,2.76]
[1755767055882,3.8153953,184.98,184.87,2.76]
[1755767056087,5.4077,184.92,184.87,2.76]
[1755767056285,364.14113829,185.04,184.83,2.76]
[1755767056286,3.8153953,184.95,184.83,2.76]
[1755767056792,3.8153953,184.95,184.79,3.8153953]
[1755767056991,145.56,184.99,184.78,2.76]
[1755767056992,3.8153953,184.89,184.78,2.76]
[1755767057587,3.8153953,184.9,184.78,2.76]
[1755767057990,10.8122,184.98,184.78,2.76]
[1755767057991,3.8153953,184.93,184.78,2.76]
[1755767058685,5.4092,184.87,184.81,5.4108]
[1755767058991,3.8153953,184.93,184.78,2.76]
[1755767059190,5.409,184.88,184.81,5.4106]
[1755767059492,3.8153953,184.93,184.81,5.4106]
[1755767059688,5.4082,184.91,184.82,2.76]
[1755767059895,3.8153953,184.95,184.82,2.76]
[1755767060391,3.8153953,184.96,184.85,5.4095]
[1755767060782,3.8153953,184.96,184.82,2.76]
[1755767060982,3.8153953,184.96,184.83,5.4101]
[1755767061182,145.82,185.0,184.82,2.76]
[1755767061183,3.8153953,184.93,184.82,2.76]
[1755767062185,3.8153953,184.9,184.75,3.8153953]
[1755767062390,5.4094,184.87,184.8,5.411]
[1755767062594,5.4094,184.87,184.8,2.76]
[1755767062994,3.8153953,184.9,184.8,2.76]
[1755767062995,5.4087,184.89,184.8,2.76]
[1755767063393,3.8153953,184.9,184.8,2.76]
[1755767064198,5.41,184.85,184.8,2.76]
[1755767064496,5.41,184.85,184.81,2.76]
[1755767064990,5.4102,184.84,184.81,2.76]
[1755767065191,3.8153953,184.9,184.75,3.8153953]
[1755767065192,3.8153953,184.9,184.77,2.76]
[1755767066094,3.8153953,184.92,184.77,2.76]
[1755767066688,5.4099,184.85,184.79,5.4113]
[1755767066895,5.4099,184.85,184.77,2.76]
[1755767067295,5.4091,184.88,184.77,2.76]
[1755767067600,3.8153953,184.92,184.77,2.76]
[1755767067996,5.4097,184.86,184.81,5.4107]
[1755767068199,3.8153953,184.92,184.81,2.84]
[1755767068499,3.8153953,184.92,184.81,8.2507]
[1755767068698,3.8153953,184.92,184.81,2.84]
[1755767069103,5.4093,184.87,184.81,8.2507]
[1755767069501,5.4093,184.87,184.81,2.84]
[1755767069700,5.4095,184.86,184.82,5.4106]
[1755767070002,3.8153953,184.89,184.76,2.84]
[1755767070199,3.8153953,184.89,184.77,5.412]
[1755767070605,3.8153953,184.89,184.76,2.84]
[1755767071005,3.8153953,184.86,184.76,2.84]
[1755767071400,10.8165,184.91,184.72,2.84]
[1755767071606,3.8153953,184.85,184.72,2.84]
[1755767071797,3.8153953,184.85,184.76,5.4122]
[1755767072204,3.8153953,184.85,184.75,2.84]
[1755767072502,5.4104,184.83,184.77,5.4119]
[1755767072701,5.4104,184.83,184.75,2.84]
[1755767073107,5.4104,184.83,184.78,5.4117]
[1755767073310,5.4104,184.83,184.78,8.2517]
[1755767073603,3.8153953,184.86,184.78,5.4117]
[1755767074110,3.8153953,184.86,184.72,3.8153953]
[1755767074411,3.8153953,184.79,184.65,3.8153953]
[1755767074709,3.8153953,184.82,184.69,2.84]
[1755767075207,363.64,184.86,184.69,2.84]
[1755767075208,3.8153953,184.83,184.69,2.84]
[1755767075401,367.4553953,184.86,184.76,5.4123]
[1755767076099,367.4553953,184.86,184.75,2.84]
[1755767076702,3.8153953,184.83,184.69,2.84]
[1755767077209,3.8153953,184.83,184.72,2.84]
[1755767077600,3.8153953,184.77,184.69,5.4144]
[1755767077804,3.8153953,184.77,184.66,2.84]
[1755767078009,363.64,184.86,184.62,2.84]
[1755767078010,3.8153953,184.8,184.62,2.84]